{"text_format":"1","workbook":"xlsx","n_sheets":1,"sheets":["Накладная"],"not_rendered":{"charts":0,"images":2,"macros":1,"external_links":0,"defined_names":1,"comments":0,"pivot_tables":0},"unopened":[],"bounds":{"document_bytes":16777216,"sheet_cells":100000,"rows_first":2000,"rows_last":500,"rows_between":2000,"halvings":0,"cell_chars":16384,"cell_head_chars":4096},"cells_cut":0,"cells_raw":0,"read":"whole","date_system":"1900"}

{"sheet":"Накладная","index":0,"n_rows":325,"n_cols":16,"rows_kept":325,"cut":false,"hidden":false,"merged":[[30,10,30,15],[31,10,31,15],[33,4,33,9],[34,5,34,9],[23,4,23,5],[24,4,24,5],[25,4,25,5],[26,4,26,5],[29,7,29,8],[30,7,30,8],[13,14,13,15],[14,14,14,15],[15,14,16,15],[19,3,19,5],[21,3,21,5],[22,4,22,5],[1,13,1,14],[2,11,2,12],[2,13,2,14],[10,14,10,15],[11,14,11,15],[12,14,12,15]]}
[null,null,null,null,null,null,null,null,null,null,"Утверждаю"]
[null,null,null,null,null,null,null,null,null,null,"Руководитель__________________",null,null,"Е.М. Гусенкова"]
[null,null,null,null,null,null,null,null,null,null,null,"(подпись)",null,"(расшифровка)"]
[null,null,null,null,null,null,null,null,null,null,"\"28\" сентября 2018г."]
[]
[]
[]
[]
[]
[]
[null,null,null,null,null,null,null,null,null,"ВЕДОМОСТЬ ВЫДАЧИ МАТЕРИАЛЬНЫХ ЦЕННОСТЕЙ НА НУЖДЫ УЧРЕЖДЕНИЯ №2",null,null,null,null,"КОДЫ"]
[null,null,null,null,null,null,null,null,null,null,null,null,null,"Форма по ОКУД","0504210"]
[null,null,null,null,null,null,null,null,"за сентябрь 2018 года.",null,null,null,null,"Дата"]
[null,null,null,null,"Учреждение ОГАУЗ ИГДП № 2",null,null,null,null,null,null,null,null,"по ОКПО"]
[null,null,null,null,"Структурное подразделение ОГАУЗ ИГДП № 2",null,null,null,null,null,null,null,null," "]
[null,null,null,null,"Материально ответственное лицо главная медсестра Жабинская Л.С.",null,null,null,null,null,null,null,null," ","Медикаменты (ДС)"]
[]
[]
[]
[null,null,null,"Принято к учету:"]
[]
[null,null,null,"Бухгалтерская запись"]
[null,null,null,"дебет","кредит"]
[]
[]
[]
[]
[]
[]
[null,null,null,null,"Главный бухгалтер",null,null,"   Казачкова Н.В."]
[null,null,null,null,null,null,"(подпись)","(расшифровка)",null,null,"Материалы выдал гл.медсестра  _____________  Жабинская Л.С."]
[null,null,null,null,null,null,null,null,null,null,"                                   (должность)                                            (подпись)                   (расшифровка подписи)"]
[]
[null,null,null,null,"Исполнитель________________   ____________  _________________"]
[null,null,null,null,null,"                                            (должность)                              (подпись)                               (расшифровка подписи)"]
[]
[null,null,null,null,"\"______\"     _________________________  20___г."]
[]
[{"$f":"IF(SUM($F$47:$O$75)=0,TRUE,IF(E39=\"\",IF(SUM(F39:O39)=0,TRUE,\"Показать\"),\"показать\"))","v":"показать"},null,null,null," ",null,null,null,null,null,null,null,null,null,null,"Форма 0504210 с. 2"]
["показать",null,null,null," "]
["показать",null,null,"Материальные ценности","наим-ние","Винпоцетин (таб., 5 мг., №50)","Глицин (таб., 100 мг., №50)","Кавинтон (амп., 10 мг., 2 мл., №10)","Мексидол (амп., 50 мг.- 2 мл., №10)","Мексидол (таб., 125 мг., №50)","Пантогам (таб., 250 мг., №50)","Пирацетам (амп., 20%, 5 мл., №10)","Пирацетам (таб/капс., 400 мг., №60)","Пиридоксина гидрохлорид (амп., 5%, 1 мл., №10)","Фенибут (таб., 250 мг., №20)"]
["показать",null,null,null,"код"]
["показать",null,null,"Единица измерения","наим-ние"]
["показать",null,null,null,"код"]
["показать",null,null,"ФИО получателя","Код строки","выдано","выдано","выдано","выдано","выдано","выдано","выдано","выдано","выдано","выдано","Расписка\nв получении"]
["показать",null,null,1,2,3,4,5,6,7,8,9,10,11,12,13]
["Показать",null,null,"Дневной стационар",null,250,700,10,40,100,300,150,120,150,20]
[true]
[true]
[true]
[true]
[true]
[true]
[true]
[true]
[true]
[true]
[true]
[true]
[true]
[true]
[true]
[true]
[true]
[true]
[true]
[true]
[true]
[true]
[true]
[true]
[true]
[true]
[true]
[true]
["показать",null,null,null,"Итого",250,700,10,40,100,300,150,120,150,20]
["показать",null,null,null," "]
["показать",null,null,null,"Цена за единицу"]
["показать",null,null,null,"Сумма"]
[{"$f":"IF(SUM($F$88:$O$116)=0,TRUE,IF(E80=\"\",IF(SUM(F80:O80)=0,TRUE,\"Показать\"),\"показать\"))","v":"показать"},null,null,null," ",null,null,null,null,null,null,null,null,null,null,"Форма 0504210 с. 2"]
[{"$f":"IF(SUM($F$88:$O$116)=0,TRUE,IF(E81=\"\",IF(SUM(F81:O81)=0,TRUE,\"Показать\"),\"показать\"))","v":"показать"},null,null,null," "]
["показать",null,null,"Материальные ценности","наим-ние","Цианокобаламин (амп., 0,5 мг./1 мл., 1 мл., №10)"]
["показать",null,null,null,"код"]
["показать",null,null,"Единица измерения","наим-ние"]
["показать",null,null,null,"код"]
["показать",null,null,"ФИО получателя","Код строки","выдано","выдано","выдано","выдано","выдано","выдано","выдано","выдано","выдано","выдано","Расписка\nв получении"]
["показать",null,null,1,2,3,4,5,6,7,8,9,10,11,12,13]
["Показать",null,null,"Дневной стационар",null,150]
[true]
[true]
[true]
[true]
[true]
[true]
[true]
[true]
[true]
[true]
[true]
[true]
[true]
[true]
[true]
[true]
[true]
[true]
[true]
[true]
[true]
[true]
[true]
[true]
[true]
[true]
[true]
[true]
["показать",null,null,null,"Итого",150,0,0,0,0,0,0,0,0,0]
["показать",null,null,null," "]
["показать",null,null,null,"Цена за единицу"]
["показать",null,null,null,"Сумма"]
[{"$f":"IF(SUM($F$129:$O$157)=0,TRUE,IF(E121=\"\",IF(SUM(F121:O121)=0,TRUE,\"Показать\"),\"показать\"))","v":true},null,null,null," ",null,null,null,null,null,null,null,null,null,null,"Форма 0504210 с. 2"]
[{"$f":"IF(SUM($F$129:$O$157)=0,TRUE,IF(E122=\"\",IF(SUM(F122:O122)=0,TRUE,\"Показать\"),\"показать\"))","v":true},null,null,null," "]
[true,null,null,"Материальные ценности","наим-ние"]
[true,null,null,null,"код"]
[true,null,null,"Единица измерения","наим-ние"]
[true,null,null,null,"код"]
[true,null,null,"ФИО получателя","Код строки","выдано","выдано","выдано","выдано","выдано","выдано","выдано","выдано","выдано","выдано","Расписка\nв получении"]
[true,null,null,1,2,3,4,5,6,7,8,9,10,11,12,13]
[true,null,null,"Дневной стационар",null,0]
[true]
[true]
[true]
[true]
[true]
[true]
[true]
[true]
[true]
[true]
[true]
[true]
[true]
[true]
[true]
[true]
[true]
[true]
[true]
[true]
[true]
[true]
[true]
[true]
[true]
[true]
[true]
[true]
[true,null,null,null,"Итого",0,0,0,0,0,0,0,0,0,0]
[true,null,null,null," "]
[true,null,null,null,"Цена за единицу"]
[true,null,null,null,"Сумма"]
[{"$f":"IF(SUM($F$170:$O$198)=0,TRUE,IF(E162=\"\",IF(SUM(F162:O162)=0,TRUE,\"Показать\"),\"показать\"))","v":true},null,null,null," ",null,null,null,null,null,null,null,null,null,null,"Форма 0504210 с. 2"]
[{"$f":"IF(SUM($F$170:$O$198)=0,TRUE,IF(E163=\"\",IF(SUM(F163:O163)=0,TRUE,\"Показать\"),\"показать\"))","v":true},null,null,null," "]
[true,null,null,"Материальные ценности","наим-ние"]
[true,null,null,null,"код"]
[true,null,null,"Единица измерения","наим-ние"]
[true,null,null,null,"код"]
[true,null,null,"ФИО получателя","Код строки","выдано","выдано","выдано","выдано","выдано","выдано","выдано","выдано","выдано","выдано","Расписка\nв получении"]
[true,null,null,1,2,3,4,5,6,7,8,9,10,11,12,13]
[true,null,null,"Дневной стационар",null,0]
[true]
[true]
[true]
[true]
[true]
[true]
[true]
[true]
[true]
[true]
[true]
[true]
[true]
[true]
[true]
[true]
[true]
[true]
[true]
[true]
[true]
[true]
[true]
[true]
[true]
[true]
[true]
[true]
[true,null,null,null,"Итого",0,0,0,0,0,0,0,0,0,0]
[true,null,null,null," "]
[true,null,null,null,"Цена за единицу"]
[true,null,null,null,"Сумма"]
[{"$f":"IF(SUM($F$211:$O$239)=0,TRUE,IF(E203=\"\",IF(SUM(F203:O203)=0,TRUE,\"Показать\"),\"показать\"))","v":true},null,null,null," ",null,null,null,null,null,null,null,null,null,null,"Форма 0504210 с. 2"]
[{"$f":"IF(SUM($F$211:$O$239)=0,TRUE,IF(E204=\"\",IF(SUM(F204:O204)=0,TRUE,\"Показать\"),\"показать\"))","v":true},null,null,null," "]
[true,null,null,"Материальные ценности","наим-ние"]
[true,null,null,null,"код"]
[true,null,null,"Единица измерения","наим-ние"]
[true,null,null,null,"код"]
[true,null,null,"ФИО получателя","Код строки","выдано","выдано","выдано","выдано","выдано","выдано","выдано","выдано","выдано","выдано","Расписка\nв получении"]
[true,null,null,1,2,3,4,5,6,7,8,9,10,11,12,13]
[true,null,null,"Дневной стационар",null,0]
[true]
[true]
[true]
[true]
[true]
[true]
[true]
[true]
[true]
[true]
[true]
[true]
[true]
[true]
[true]
[true]
[true]
[true]
[true]
[true]
[true]
[true]
[true]
[true]
[true]
[true]
[true]
[true]
[true,null,null,null,"Итого",0,0,0,0,0,0,0,0,0,0]
[true,null,null,null," "]
[true,null,null,null,"Цена за единицу"]
[true,null,null,null,"Сумма"]
[{"$f":"IF(SUM($F$252:$O$280)=0,TRUE,IF(E244=\"\",IF(SUM(F244:O244)=0,TRUE,\"Показать\"),\"показать\"))","v":true},null,null,null," ",null,null,null,null,null,null,null,null,null,null,"Форма 0504210 с. 2"]
[{"$f":"IF(SUM($F$252:$O$280)=0,TRUE,IF(E245=\"\",IF(SUM(F245:O245)=0,TRUE,\"Показать\"),\"показать\"))","v":true},null,null,null," "]
[true,null,null,"Материальные ценности","наим-ние"]
[true,null,null,null,"код"]
[true,null,null,"Единица измерения","наим-ние"]
[true,null,null,null,"код"]
[true,null,null,"ФИО получателя","Код строки","выдано","выдано","выдано","выдано","выдано","выдано","выдано","выдано","выдано","выдано","Расписка\nв получении"]
[true,null,null,1,2,3,4,5,6,7,8,9,10,11,12,13]
[true,null,null,"Дневной стационар",null,0]
[true]
[true]
[true]
[true]
[true]
[true]
[true]
[true]
[true]
[true]
[true]
[true]
[true]
[true]
[true]
[true]
[true]
[true]
[true]
[true]
[true]
[true]
[true]
[true]
[true]
[true]
[true]
[true]
[true,null,null,null,"Итого",0,0,0,0,0,0,0,0,0,0]
[true,null,null,null," "]
[true,null,null,null,"Цена за единицу"]
[true,null,null,null,"Сумма"]
[{"$f":"IF(SUM($F$293:$O$321)=0,TRUE,IF(E285=\"\",IF(SUM(F285:O285)=0,TRUE,\"Показать\"),\"показать\"))","v":true},null,null,null," ",null,null,null,null,null,null,null,null,null,null,"Форма 0504210 с. 2"]
[{"$f":"IF(SUM($F$293:$O$321)=0,TRUE,IF(E286=\"\",IF(SUM(F286:O286)=0,TRUE,\"Показать\"),\"показать\"))","v":true},null,null,null," "]
[true,null,null,"Материальные ценности","наим-ние"]
[true,null,null,null,"код"]
[true,null,null,"Единица измерения","наим-ние"]
[true,null,null,null,"код"]
[true,null,null,"ФИО получателя","Код строки","выдано","выдано","выдано","выдано","выдано","выдано","выдано","выдано","выдано","выдано","Расписка\nв получении"]
[true,null,null,1,2,3,4,5,6,7,8,9,10,11,12,13]
[true,null,null,"Дневной стационар",null,0]
[true]
[true]
[true]
[true]
[true]
[true]
[true]
[true]
[true]
[true]
[true]
[true]
[true]
[true]
[true]
[true]
[true]
[true]
[true]
[true]
[true]
[true]
[true]
[true]
[true]
[true]
[true]
[true]
[true,null,null,null,"Итого",0,0,0,0,0,0,0,0,0,0]
[true,null,null,null," "]
[true,null,null,null,"Цена за единицу"]
[true,null,null,null,"Сумма"]